[Event "*** Titled Tuesday Blitz"]
[Site "Chess.com"]
[Date "2018.12.04"]
[Round "3"]
[White "DiogenesSinopeus"]
[Black "goodnigth"]
[Result "1-0"]
[WhiteElo "2428"]
[BlackElo "2347"]
[TimeControl "180+2"]
[EndTime "13:35:32 PST"]
[Termination "DiogenesSinopeus won by resignation"]

1. d4 {[%clk 0:03:01.9]} 1... Nf6 {[%clk 0:03:00.3]} 2. c4 {[%clk 0:03:03]} 2...
Nc6 {[%clk 0:03:01]} 3. Nc3 {[%clk 0:03:03.2]} 3... e5 {[%clk 0:03:02.3]} 4. d5
{[%clk 0:03:04.9]} 4... Ne7 {[%clk 0:03:03.8]} 5. h4 {[%clk 0:03:06.5]} 5... d6
{[%clk 0:02:56.8]} 6. e4 {[%clk 0:03:01.7]} 6... Bg4 {[%clk 0:02:55.8]} 7. Be2
{[%clk 0:02:59.3]} 7... Bxe2 {[%clk 0:02:55.6]} 8. Qxe2 {[%clk 0:02:52.8]} 8...
Nd7 {[%clk 0:02:43.3]} 9. Nf3 {[%clk 0:02:39.5]} 9... c6 {[%clk 0:02:24.2]} 10.
Be3 {[%clk 0:02:33.7]} 10... Qa5 {[%clk 0:02:20.3]} 11. O-O-O {[%clk 0:02:32.3]}
11... cxd5 {[%clk 0:02:13.1]} 12. cxd5 {[%clk 0:02:28.8]} 12... Rc8 {[%clk
0:02:12.1]} 13. Kb1 {[%clk 0:02:30.1]} 13... a6 {[%clk 0:01:58.5]} 14. Rc1
{[%clk 0:02:30.2]} 14... g6 {[%clk 0:01:57.6]} 15. h5 {[%clk 0:02:31.1]} 15...
Bg7 {[%clk 0:01:57.8]} 16. Bg5 {[%clk 0:02:23.4]} 16... f6 {[%clk 0:01:49.5]}
17. h6 {[%clk 0:02:22.4]} 17... Bf8 {[%clk 0:01:47.1]} 18. Bd2 {[%clk 0:02:20]}
18... Nc5 {[%clk 0:01:37.2]} 19. Ne1 {[%clk 0:02:15]} 19... Kf7 {[%clk
0:00:34.6]} 20. Nd3 {[%clk 0:02:16]} 20... Nxd3 {[%clk 0:00:19.2]} 21. Qxd3
{[%clk 0:02:17.9]} 21... b5 {[%clk 0:00:11.5]} 22. Qh3 {[%clk 0:02:19.3]} 22...
f5 {[%clk 0:00:09]} 23. Bg5 {[%clk 0:02:16.4]} 23... b4 {[%clk 0:00:08]} 24. Ne2
{[%clk 0:02:04.8]} 24... Rxc1+ {[%clk 0:00:08.1]} 25. Rxc1 {[%clk 0:02:06.7]}
25... Qb5 {[%clk 0:00:09.5]} 26. Qf3 {[%clk 0:01:51.1]} 26... f4 {[%clk
0:00:05]} 27. g3 {[%clk 0:01:48.8]} 27... Bxh6 {[%clk 0:00:04.3]} 28. Bxh6
{[%clk 0:01:47.8]} 28... b3 {[%clk 0:00:05.9]} 29. a3 {[%clk 0:01:35.7]} 1-0

[Event "*** Titled Tuesday Blitz"]
[Site "Chess.com"]
[Date "2018.12.04"]
[Round "3"]
[White "iaraldinho"]
[Black "GMMatamoros"]
[Result "1-0"]
[WhiteElo "2494"]
[BlackElo "2519"]
[TimeControl "180+2"]
[EndTime "13:35:37 PST"]
[Termination "iaraldinho won by resignation"]

1. e4 {[%clk 0:03:01.9]} 1... c5 {[%clk 0:02:59.9]} 2. Nf3 {[%clk 0:03:02.8]}
2... Nc6 {[%clk 0:03:01]} 3. d4 {[%clk 0:03:04.2]} 3... cxd4 {[%clk 0:03:02.9]}
4. Nxd4 {[%clk 0:03:05.6]} 4... e5 {[%clk 0:03:04.5]} 5. Nb5 {[%clk 0:03:06.4]}
5... d6 {[%clk 0:03:05.7]} 6. N1c3 {[%clk 0:03:07.6]} 6... a6 {[%clk 0:03:05.9]}
7. Na3 {[%clk 0:03:08.9]} 7... Be7 {[%clk 0:03:06.6]} 8. Nc4 {[%clk 0:03:09.2]}
8... b5 {[%clk 0:03:06.9]} 9. Ne3 {[%clk 0:03:10.4]} 9... Nf6 {[%clk 0:03:07.9]}
10. Bd3 {[%clk 0:03:10.3]} 10... O-O {[%clk 0:02:58.1]} 11. O-O {[%clk
0:03:09.3]} 11... Nb4 {[%clk 0:02:58]} 12. Ncd5 {[%clk 0:03:05.8]} 12... Nfxd5
{[%clk 0:02:53.6]} 13. Nxd5 {[%clk 0:03:06.5]} 13... Nxd5 {[%clk 0:02:54.6]} 14.
exd5 {[%clk 0:03:07.9]} 14... f5 {[%clk 0:02:55.5]} 15. f3 {[%clk 0:03:09.1]}
15... Qb6+ {[%clk 0:02:41.4]} 16. Kh1 {[%clk 0:03:09.2]} 16... Bb7 {[%clk
0:02:42.3]} 17. a4 {[%clk 0:03:06.3]} 17... b4 {[%clk 0:02:35.5]} 18. Re1 {[%clk
0:03:02.1]} 18... Qc5 {[%clk 0:02:22.6]} 19. Be3 {[%clk 0:03:03.1]} 19... Qxd5
{[%clk 0:02:17.7]} 20. Qe2 {[%clk 0:03:04.5]} 20... Qc6 {[%clk 0:02:13.1]} 21.
Bd2 {[%clk 0:02:55.9]} 21... a5 {[%clk 0:01:34.9]} 22. Bb5 {[%clk 0:02:39.1]}
22... Qb6 {[%clk 0:01:30.5]} 23. Rad1 {[%clk 0:02:39.5]} 23... Bf6 {[%clk
0:01:21.6]} 24. Be3 {[%clk 0:02:34.8]} 24... Qc7 {[%clk 0:01:18.1]} 25. Qc4+
{[%clk 0:02:35.7]} 25... Qxc4 {[%clk 0:01:16.1]} 26. Bxc4+ {[%clk 0:02:37.6]}
26... d5 {[%clk 0:01:11]} 27. Rxd5 {[%clk 0:02:37.8]} 27... Rfc8 {[%clk
0:00:58.5]} 28. Rc5+ {[%clk 0:02:35.2]} 28... Kf8 {[%clk 0:00:57.4]} 29. b3
{[%clk 0:02:36.5]} 29... e4 {[%clk 0:00:35.3]} 30. Rxf5 {[%clk 0:02:30.8]} 30...
exf3 {[%clk 0:00:35.3]} 31. gxf3 {[%clk 0:02:31.5]} 31... Rc7 {[%clk 0:00:18.7]}
32. Kg2 {[%clk 0:02:22]} 32... Rac8 {[%clk 0:00:14.2]} 33. Bb6 {[%clk
0:02:19.2]} 33... Re7 {[%clk 0:00:14.9]} 34. Rxe7 {[%clk 0:02:12.9]} 34... Kxe7
{[%clk 0:00:16]} 35. Bxa5 {[%clk 0:02:14.1]} 35... Kd6 {[%clk 0:00:13.9]} 36.
Bxb4+ {[%clk 0:02:14.4]} 36... Kc6 {[%clk 0:00:14.8]} 37. Rc5+ {[%clk
0:02:15.2]} 37... Kb6 {[%clk 0:00:16.1]} 38. a5+ {[%clk 0:02:14.7]} 38... Ka7
{[%clk 0:00:17]} 39. Rxc8 {[%clk 0:02:16]} 39... Bxc8 {[%clk 0:00:18.9]} 40.
Bc5+ {[%clk 0:02:17.2]} 40... Kb7 {[%clk 0:00:19.8]} 41. a6+ {[%clk 0:02:17.7]}
41... Kb8 {[%clk 0:00:20.9]} 42. a7+ {[%clk 0:02:17.4]} 42... Ka8 {[%clk
0:00:21.1]} 43. Bd5+ {[%clk 0:02:18.8]} 43... Bb7 {[%clk 0:00:22.7]} 44. Bxb7+
{[%clk 0:02:20.2]} 44... Kxb7 {[%clk 0:00:24.6]} 45. h3 {[%clk 0:02:20.3]} 45...
g5 {[%clk 0:00:25.5]} 46. Kf1 {[%clk 0:02:21.3]} 46... h5 {[%clk 0:00:26.4]} 47.
Ke2 {[%clk 0:02:22.6]} 1-0

[Event "*** Titled Tuesday Blitz"]
[Site "Chess.com"]
[Date "2018.12.04"]
[Round "3"]
[White "Mykola-Bortnyk"]
[Black "jncool68"]
[Result "1-0"]
[WhiteElo "2841"]
[BlackElo "2636"]
[TimeControl "180+2"]
[EndTime "13:35:39 PST"]
[Termination "Mykola-Bortnyk won by resignation"]

1. e4 {[%clk 0:03:01.9]} 1... e5 {[%clk 0:03:00.4]} 2. Nf3 {[%clk 0:03:02.4]}
2... Nc6 {[%clk 0:03:01.5]} 3. Bb5 {[%clk 0:03:02.9]} 3... a6 {[%clk 0:03:01.7]}
4. Ba4 {[%clk 0:03:03.9]} 4... Nf6 {[%clk 0:03:02.9]} 5. Qe2 {[%clk 0:03:05.4]}
5... d6 {[%clk 0:03:01.7]} 6. O-O {[%clk 0:03:02.9]} 6... Be7 {[%clk 0:03:02.4]}
7. c3 {[%clk 0:03:02.5]} 7... O-O {[%clk 0:03:03.2]} 8. h3 {[%clk 0:03:02.1]}
8... b5 {[%clk 0:02:56.6]} 9. Bc2 {[%clk 0:03:02.4]} 9... Bb7 {[%clk 0:02:53.8]}
10. Rd1 {[%clk 0:03:01.7]} 10... Re8 {[%clk 0:02:54.6]} 11. a4 {[%clk
0:02:58.1]} 11... b4 {[%clk 0:02:54.3]} 12. d4 {[%clk 0:02:57.5]} 12... bxc3
{[%clk 0:02:55.4]} 13. bxc3 {[%clk 0:02:57.4]} 13... exd4 {[%clk 0:02:56.4]} 14.
Nxd4 {[%clk 0:02:56]} 14... Nxd4 {[%clk 0:02:56]} 15. cxd4 {[%clk 0:02:56.3]}
15... Bf8 {[%clk 0:02:57.1]} 16. f3 {[%clk 0:02:56.4]} 16... Nh5 {[%clk
0:02:52.6]} 17. Nc3 {[%clk 0:02:50.2]} 17... g6 {[%clk 0:02:52.1]} 18. Rb1
{[%clk 0:02:41.5]} 18... Rb8 {[%clk 0:02:51.7]} 19. Bd3 {[%clk 0:02:32.7]} 19...
Bg7 {[%clk 0:02:49.1]} 20. Bxa6 {[%clk 0:02:29.5]} 20... Bxa6 {[%clk 0:02:49.9]}
21. Qxa6 {[%clk 0:02:26.9]} 21... Rxb1 {[%clk 0:02:39.2]} 22. Nxb1 {[%clk
0:02:28.8]} 22... Qh4 {[%clk 0:02:32.8]} 23. Qb5 {[%clk 0:02:20.2]} 23... Bxd4+
{[%clk 0:02:27.4]} 24. Rxd4 {[%clk 0:02:20.7]} 24... Re5 {[%clk 0:02:24.6]} 25.
Qb8+ {[%clk 0:02:00.6]} 25... Kg7 {[%clk 0:02:25.1]} 26. Rd1 {[%clk 0:02:01.7]}
26... Rc5 {[%clk 0:02:23.6]} 27. Be3 {[%clk 0:01:56.2]} 27... Rc2 {[%clk
0:02:23]} 28. Nd2 {[%clk 0:01:47.8]} 28... Nf4 {[%clk 0:02:12.9]} 29. Bxf4
{[%clk 0:01:28.5]} 29... Qxf4 {[%clk 0:02:13.6]} 30. Qb3 {[%clk 0:01:29.3]}
30... Rc5 {[%clk 0:02:03.1]} 31. Qd3 {[%clk 0:01:27.5]} 31... h5 {[%clk
0:01:53.5]} 32. Nb3 {[%clk 0:01:24.5]} 32... Rg5 {[%clk 0:01:53.3]} 33. a5
{[%clk 0:01:14]} 33... Qg3 {[%clk 0:01:54.3]} 34. Qd4+ {[%clk 0:01:07.4]} 34...
Kh7 {[%clk 0:01:54.7]} 35. Qf2 {[%clk 0:01:04.7]} 35... Qxh3 {[%clk 0:01:55.7]}
36. a6 {[%clk 0:01:05.7]} 36... Qc8 {[%clk 0:01:55.6]} 37. a7 {[%clk 0:01:03.5]}
37... h4 {[%clk 0:01:54]} 38. Ra1 {[%clk 0:01:02]} 38... Qa8 {[%clk 0:01:51.7]}
39. Qxh4+ {[%clk 0:01:02.5]} 39... Rh5 {[%clk 0:01:53]} 40. Qf6 {[%clk
0:01:01.3]} 40... Kg8 {[%clk 0:01:52.8]} 41. Nd4 {[%clk 0:00:58.3]} 41... Rc5
{[%clk 0:01:47.7]} 42. Kf2 {[%clk 0:00:47.6]} 1-0

[Event "*** Titled Tuesday Blitz"]
[Site "Chess.com"]
[Date "2018.12.04"]
[Round "3"]
[White "Alexander_Moskalenko"]
[Black "Bad_left_hook"]
[Result "1-0"]
[WhiteElo "2840"]
[BlackElo "2510"]
[TimeControl "180+2"]
[EndTime "13:35:39 PST"]
[Termination "Alexander_Moskalenko won by resignation"]

1. e4 {[%clk 0:02:59.5]} 1... c5 {[%clk 0:02:59.1]} 2. Nf3 {[%clk 0:03:00.5]}
2... d6 {[%clk 0:03:00.1]} 3. c3 {[%clk 0:03:01.4]} 3... Nf6 {[%clk 0:03:00.2]}
4. h3 {[%clk 0:03:02.9]} 4... Nc6 {[%clk 0:02:46.8]} 5. Bd3 {[%clk 0:03:03.4]}
5... d5 {[%clk 0:02:43.3]} 6. e5 {[%clk 0:03:00.6]} 6... Nd7 {[%clk 0:02:43.8]}
7. Qe2 {[%clk 0:02:54.8]} 7... Qc7 {[%clk 0:02:33.9]} 8. Bb5 {[%clk 0:02:52.5]}
8... e6 {[%clk 0:02:24.1]} 9. O-O {[%clk 0:02:44]} 9... a6 {[%clk 0:02:23.4]}
10. Bxc6 {[%clk 0:02:45]} 10... Qxc6 {[%clk 0:02:22.3]} 11. d4 {[%clk
0:02:46.2]} 11... Be7 {[%clk 0:02:21.4]} 12. Bg5 {[%clk 0:02:44.9]} 12... Bxg5
{[%clk 0:02:13.7]} 13. Nxg5 {[%clk 0:02:46.8]} 13... O-O {[%clk 0:02:14.4]} 14.
Qd3 {[%clk 0:02:35]} 14... g6 {[%clk 0:02:03]} 15. Qg3 {[%clk 0:02:31.8]} 15...
Kg7 {[%clk 0:01:45.5]} 16. h4 {[%clk 0:02:19.8]} 16... h5 {[%clk 0:01:39.3]} 17.
Nd2 {[%clk 0:02:19.6]} 17... b5 {[%clk 0:01:38.1]} 18. Ndf3 {[%clk 0:02:19.4]}
18... a5 {[%clk 0:01:26.7]} 19. Rac1 {[%clk 0:02:19.8]} 19... Ba6 {[%clk
0:01:26.1]} 20. Rfe1 {[%clk 0:02:20.4]} 20... Qb6 {[%clk 0:01:23.2]} 21. Nh3
{[%clk 0:02:21]} 21... b4 {[%clk 0:01:10.8]} 22. Nf4 {[%clk 0:02:20]} 22... Rh8
{[%clk 0:01:11.4]} 23. Ng5 {[%clk 0:02:21.1]} 23... Rae8 {[%clk 0:00:57.3]} 24.
Re3 {[%clk 0:02:04.4]} 24... Nf8 {[%clk 0:00:52.2]} 25. Qf3 {[%clk 0:01:46.1]}
25... Qa7 {[%clk 0:00:28.6]} 26. dxc5 {[%clk 0:01:29]} 26... bxc3 {[%clk
0:00:27.3]} 27. bxc3 {[%clk 0:01:30.1]} 27... Nh7 {[%clk 0:00:27.4]} 28. Nxh7
{[%clk 0:01:22.4]} 28... Rxh7 {[%clk 0:00:26.2]} 29. Nh3 {[%clk 0:01:18.3]}
29... Qxc5 {[%clk 0:00:24.2]} 30. Ng5 {[%clk 0:01:17.7]} 30... Kg8 {[%clk
0:00:24.5]} 31. Nxh7 {[%clk 0:01:18]} 1-0

[Event "*** Titled Tuesday Blitz"]
[Site "Chess.com"]
[Date "2018.12.04"]
[Round "3"]
[White "MattyDPerrine"]
[Black "GMHess"]
[Result "0-1"]
[WhiteElo "2418"]
[BlackElo "2635"]
[TimeControl "180+2"]
[EndTime "13:35:57 PST"]
[Termination "GMHess won by resignation"]

1. Nf3 {[%clk 0:03:01.9]} 1... g6 {[%clk 0:02:59.5]} 2. g3 {[%clk 0:03:01.6]}
2... Bg7 {[%clk 0:03:01.4]} 3. Bg2 {[%clk 0:03:01.1]} 3... e5 {[%clk 0:03:02.9]}
4. e4 {[%clk 0:03:01.1]} 4... Nc6 {[%clk 0:03:04.3]} 5. O-O {[%clk 0:02:58.3]}
5... d6 {[%clk 0:03:05.8]} 6. c3 {[%clk 0:02:58.5]} 6... Bg4 {[%clk 0:03:05]} 7.
Na3 {[%clk 0:02:54.1]} 7... Qd7 {[%clk 0:03:03.8]} 8. Re1 {[%clk 0:02:54.8]}
8... h5 {[%clk 0:03:04.3]} 9. h4 {[%clk 0:02:53.4]} 9... O-O-O {[%clk
0:03:04.3]} 10. Nc2 {[%clk 0:02:50]} 10... f5 {[%clk 0:03:05]} 11. exf5 {[%clk
0:02:49.5]} 11... gxf5 {[%clk 0:03:06.1]} 12. d3 {[%clk 0:02:42.1]} 12... Nf6
{[%clk 0:02:45.3]} 13. Ne3 {[%clk 0:02:38.5]} 13... f4 {[%clk 0:02:32.2]} 14.
Nxg4 {[%clk 0:02:36.5]} 14... hxg4 {[%clk 0:02:32.7]} 15. Ng5 {[%clk 0:02:35.5]}
15... f3 {[%clk 0:02:34.1]} 16. Bf1 {[%clk 0:02:36.1]} 16... Rde8 {[%clk
0:02:22.5]} 17. Bd2 {[%clk 0:01:55.3]} 17... Ne7 {[%clk 0:02:10.3]} 18. Qb3
{[%clk 0:01:50.9]} 18... Nf5 {[%clk 0:02:03.7]} 19. d4 {[%clk 0:01:10.1]} 19...
exd4 {[%clk 0:01:21.3]} 20. Bc4 {[%clk 0:00:46.8]} 20... d5 {[%clk 0:01:11.1]}
21. Bb5 {[%clk 0:00:47.9]} 21... c6 {[%clk 0:01:10]} 22. Bd3 {[%clk 0:00:49.3]}
22... Nxh4 {[%clk 0:00:34]} 23. gxh4 {[%clk 0:00:45.7]} 23... Rxh4 {[%clk
0:00:33.2]} 24. Qc2 {[%clk 0:00:32.2]} 24... Reh8 {[%clk 0:00:30.5]} 0-1

[Event "*** Titled Tuesday Blitz"]
[Site "Chess.com"]
[Date "2018.12.04"]
[Round "3"]
[White "BIG_Pirate"]
[Black "BasilSmash"]
[Result "1/2-1/2"]
[WhiteElo "2360"]
[BlackElo "2389"]
[TimeControl "180+2"]
[EndTime "13:36:05 PST"]
[Termination "Game drawn by repetition"]

1. Nf3 {[%clk 0:03:01.9]} 1... d5 {[%clk 0:02:59.8]} 2. c4 {[%clk 0:03:03]} 2...
d4 {[%clk 0:02:57.7]} 3. g3 {[%clk 0:03:03.8]} 3... Nc6 {[%clk 0:02:57.6]} 4.
Bg2 {[%clk 0:03:04.5]} 4... e5 {[%clk 0:02:58.7]} 5. O-O {[%clk 0:03:05]} 5...
e4 {[%clk 0:02:41.6]} 6. Ne1 {[%clk 0:03:06]} 6... h5 {[%clk 0:02:42.5]} 7. d3
{[%clk 0:03:06.9]} 7... h4 {[%clk 0:02:41.8]} 8. Bxe4 {[%clk 0:03:06.1]} 8...
Bh3 {[%clk 0:02:39.4]} 9. Ng2 {[%clk 0:03:06.1]} 9... hxg3 {[%clk 0:02:40.1]}
10. fxg3 {[%clk 0:03:07.1]} 10... Nf6 {[%clk 0:02:38.8]} 11. Bf3 {[%clk
0:03:00.7]} 11... Qd7 {[%clk 0:02:37.6]} 12. Nd2 {[%clk 0:02:57.7]} 12... O-O-O
{[%clk 0:02:37.2]} 13. Ne4 {[%clk 0:02:58.5]} 13... Ng4 {[%clk 0:02:32.9]} 14.
Ng5 {[%clk 0:02:55.6]} 14... Bxg2 {[%clk 0:02:20]} 15. Bxg2 {[%clk 0:02:50.7]}
15... Nxh2 {[%clk 0:02:06.4]} 16. Rxf7 {[%clk 0:02:27.7]} 16... Qg4 {[%clk
0:02:06.7]} 17. Bf4 {[%clk 0:02:27.4]} 17... Bd6 {[%clk 0:02:07.4]} 18. Qd2
{[%clk 0:02:22.4]} 18... Qh5 {[%clk 0:01:58.8]} 19. Bh3+ {[%clk 0:01:48.7]}
19... Ng4 {[%clk 0:01:51.6]} 20. Bxd6 {[%clk 0:01:49.5]} 20... cxd6 {[%clk
0:01:42.6]} 21. Qf4 {[%clk 0:01:50.2]} 21... Ne5 {[%clk 0:01:43.5]} 22. Re7
{[%clk 0:01:12.6]} 22... Rhf8 {[%clk 0:01:18.6]} 23. Qe4 {[%clk 0:01:13.3]}
23... Rd7 {[%clk 0:01:19.6]} 24. Rxd7 {[%clk 0:00:53.1]} 24... Kxd7 {[%clk
0:01:21.5]} 25. Bxg4+ {[%clk 0:00:46.7]} 25... Nxg4 {[%clk 0:01:17.8]} 26. Qxb7+
{[%clk 0:00:41.2]} 26... Ke8 {[%clk 0:01:18.3]} 27. Qc8+ {[%clk 0:00:38.3]}
27... Ke7 {[%clk 0:01:19.1]} 28. Qe6+ {[%clk 0:00:32.3]} 28... Kd8 {[%clk
0:01:18.4]} 29. Qxd6+ {[%clk 0:00:32.4]} 29... Ke8 {[%clk 0:01:19.4]} 30. Qc6+
{[%clk 0:00:21.1]} 30... Ke7 {[%clk 0:01:19.2]} 31. Qe6+ {[%clk 0:00:21.1]}
31... Kd8 {[%clk 0:01:20]} 32. Qd6+ {[%clk 0:00:21.4]} 32... Ke8 {[%clk
0:01:18.9]} 33. Qe6+ {[%clk 0:00:21.6]} 33... Kd8 {[%clk 0:01:19.9]} 34. Qd6+
{[%clk 0:00:16.2]} 34... Ke8 {[%clk 0:01:20.8]} 35. Qe6+ {[%clk 0:00:17]} 35...
Kd8 {[%clk 0:01:21.7]} 36. Qd6+ {[%clk 0:00:17.4]} 36... Ke8 {[%clk 0:01:22.6]}
37. Qe6+ {[%clk 0:00:16.9]} 37... Kd8 {[%clk 0:01:23.3]} 38. Qd6+ {[%clk
0:00:17.8]} 1/2-1/2

[Event "*** Titled Tuesday Blitz"]
[Site "Chess.com"]
[Date "2018.12.04"]
[Round "3"]
[White "Rakhmanov_Aleksandr"]
[Black "MatyChess1"]
[Result "1-0"]
[WhiteElo "2791"]
[BlackElo "2530"]
[TimeControl "180+2"]
[EndTime "13:36:09 PST"]
[Termination "Rakhmanov_Aleksandr won by checkmate"]

1. c4 {[%clk 0:02:50.1]} 1... e5 {[%clk 0:02:59.9]} 2. Nf3 {[%clk 0:02:50.1]}
2... Nc6 {[%clk 0:03:00.4]} 3. Nc3 {[%clk 0:02:50.2]} 3... Nf6 {[%clk
0:03:01.8]} 4. d4 {[%clk 0:02:49.7]} 4... exd4 {[%clk 0:03:02.2]} 5. Nxd4 {[%clk
0:02:50.2]} 5... Bb4 {[%clk 0:03:03.4]} 6. Nxc6 {[%clk 0:02:47.1]} 6... bxc6
{[%clk 0:03:05.3]} 7. Bd2 {[%clk 0:02:47.8]} 7... O-O {[%clk 0:03:04.1]} 8. g3
{[%clk 0:02:44.9]} 8... d5 {[%clk 0:02:50.4]} 9. cxd5 {[%clk 0:02:44.7]} 9...
cxd5 {[%clk 0:02:52.3]} 10. Bg2 {[%clk 0:02:45.6]} 10... c6 {[%clk 0:02:49.1]}
11. O-O {[%clk 0:02:40.8]} 11... Re8 {[%clk 0:02:46.1]} 12. Rc1 {[%clk
0:02:38.3]} 12... Bg4 {[%clk 0:02:39.6]} 13. f3 {[%clk 0:02:37]} 13... Bd7
{[%clk 0:02:35.5]} 14. Na4 {[%clk 0:02:33.8]} 14... Bd6 {[%clk 0:02:29.2]} 15.
Rf2 {[%clk 0:02:27.4]} 15... Qe7 {[%clk 0:02:13.1]} 16. Qc2 {[%clk 0:02:13.2]}
16... h5 {[%clk 0:01:29.6]} 17. Nc5 {[%clk 0:02:03.3]} 17... h4 {[%clk
0:01:18.2]} 18. gxh4 {[%clk 0:01:55.6]} 18... Bc8 {[%clk 0:00:40.2]} 19. Bg5
{[%clk 0:01:49]} 19... Qe5 {[%clk 0:00:31.9]} 20. f4 {[%clk 0:01:45.6]} 20...
Qe3 {[%clk 0:00:32.9]} 21. Bxf6 {[%clk 0:01:34.7]} 21... gxf6 {[%clk 0:00:31.8]}
22. Nd3 {[%clk 0:01:26.6]} 22... Bd7 {[%clk 0:00:13.3]} 23. Kh1 {[%clk
0:01:21.6]} 23... Bf5 {[%clk 0:00:11.9]} 24. Rg1 {[%clk 0:01:19.4]} 24... Kh8
{[%clk 0:00:10.6]} 25. Qxc6 {[%clk 0:01:14.1]} 25... Bxd3 {[%clk 0:00:09.5]} 26.
Qxd6 {[%clk 0:01:14.6]} 26... Qxf2 {[%clk 0:00:04.9]} 27. Qxf6+ {[%clk
0:01:12.2]} 27... Kh7 {[%clk 0:00:06.8]} 28. Qxf7+ {[%clk 0:01:08.2]} 28... Kh8
{[%clk 0:00:07.8]} 29. Qf6+ {[%clk 0:01:08.5]} 29... Kh7 {[%clk 0:00:09]} 30.
exd3 {[%clk 0:01:00.7]} 30... Re1 {[%clk 0:00:08.7]} 31. Be4+ {[%clk 0:01:00.5]}
31... dxe4 {[%clk 0:00:08.1]} 32. Qg7# {[%clk 0:01:01.7]} 1-0

[Event "*** Titled Tuesday Blitz"]
[Site "Chess.com"]
[Date "2018.12.04"]
[Round "3"]
[White "Caminator2000"]
[Black "vovachesss"]
[Result "0-1"]
[WhiteElo "2357"]
[BlackElo "2501"]
[TimeControl "180+2"]
[EndTime "13:36:15 PST"]
[Termination "vovachesss won by resignation"]

1. d4 {[%clk 0:03:01.9]} 1... Nc6 {[%clk 0:03:00.1]} 2. Nf3 {[%clk 0:02:56]}
2... d6 {[%clk 0:03:00.8]} 3. g3 {[%clk 0:02:51.3]} 3... g6 {[%clk 0:02:59.4]}
4. Bg2 {[%clk 0:02:51.8]} 4... Bg7 {[%clk 0:03:00.5]} 5. O-O {[%clk 0:02:52.5]}
5... Nf6 {[%clk 0:02:58.6]} 6. c4 {[%clk 0:02:50.5]} 6... O-O {[%clk 0:02:59.8]}
7. Nc3 {[%clk 0:02:49.3]} 7... h6 {[%clk 0:02:57.8]} 8. h3 {[%clk 0:02:29.6]}
8... a5 {[%clk 0:02:51.3]} 9. d5 {[%clk 0:02:13.8]} 9... Ne5 {[%clk 0:02:47.8]}
10. Nd2 {[%clk 0:02:12.8]} 10... e6 {[%clk 0:02:37.9]} 11. f4 {[%clk 0:01:53]}
11... Ned7 {[%clk 0:02:38.8]} 12. dxe6 {[%clk 0:01:53.6]} 12... fxe6 {[%clk
0:02:40.7]} 13. Qc2 {[%clk 0:01:54.4]} 13... Kh7 {[%clk 0:02:39.7]} 14. Nf3
{[%clk 0:01:54.6]} 14... Re8 {[%clk 0:02:26.8]} 15. g4 {[%clk 0:01:05.1]} 15...
e5 {[%clk 0:02:18.1]} 16. Nh4 {[%clk 0:00:19.8]} 16... Nf8 {[%clk 0:01:17.9]}
17. g5 {[%clk 0:00:19.8]} 17... Nh5 {[%clk 0:01:07]} 18. f5 {[%clk 0:00:19.1]}
18... hxg5 {[%clk 0:00:38.7]} 19. fxg6+ {[%clk 0:00:19.5]} 19... Kh8 {[%clk
0:00:37]} 20. Nf5 {[%clk 0:00:20.5]} 20... Nxg6 {[%clk 0:00:29.8]} 21. Nxg7
{[%clk 0:00:15.1]} 21... Kxg7 {[%clk 0:00:31.1]} 22. Be4 {[%clk 0:00:08.8]}
22... Ngf4 {[%clk 0:00:28.2]} 23. e3 {[%clk 0:00:10.1]} 23... Bxh3 {[%clk
0:00:21.5]} 24. Kh2 {[%clk 0:00:11.2]} 24... Bxf1 {[%clk 0:00:21.8]} 0-1

[Event "*** Titled Tuesday Blitz"]
[Site "Chess.com"]
[Date "2018.12.04"]
[Round "3"]
[White "DishonorOnYourCow"]
[Black "TheRigos"]
[Result "0-1"]
[WhiteElo "2251"]
[BlackElo "2409"]
[TimeControl "180+2"]
[EndTime "13:36:18 PST"]
[Termination "TheRigos won by resignation"]

1. d4 {[%clk 0:03:00.3]} 1... Nf6 {[%clk 0:02:59.2]} 2. c4 {[%clk 0:03:01.1]}
2... g6 {[%clk 0:02:59.9]} 3. Nc3 {[%clk 0:03:02]} 3... Bg7 {[%clk 0:03:00.4]}
4. e4 {[%clk 0:03:02.7]} 4... O-O {[%clk 0:03:00.6]} 5. f4 {[%clk 0:03:03.6]}
5... d6 {[%clk 0:03:01.1]} 6. Nf3 {[%clk 0:03:03.4]} 6... c5 {[%clk 0:03:02.4]}
7. d5 {[%clk 0:03:03.9]} 7... e6 {[%clk 0:03:03.9]} 8. dxe6 {[%clk 0:03:03.7]}
8... Bxe6 {[%clk 0:03:02.2]} 9. Bd3 {[%clk 0:03:04.1]} 9... Nc6 {[%clk
0:02:56.2]} 10. f5 {[%clk 0:03:05.1]} 10... Bd7 {[%clk 0:02:50.9]} 11. O-O
{[%clk 0:03:05]} 11... Re8 {[%clk 0:02:46.1]} 12. Bf4 {[%clk 0:03:03.7]} 12...
Qb6 {[%clk 0:02:30.4]} 13. Bxd6 {[%clk 0:02:37.4]} 13... Nb4 {[%clk 0:02:29.6]}
14. Be5 {[%clk 0:02:14.8]} 14... Rad8 {[%clk 0:02:23.7]} 15. Bxf6 {[%clk
0:02:03.2]} 15... Bxf6 {[%clk 0:02:22]} 16. Nd5 {[%clk 0:01:59.5]} 16... Nxd5
{[%clk 0:02:21.2]} 17. cxd5 {[%clk 0:01:59.8]} 17... c4+ {[%clk 0:02:18.9]} 18.
Kh1 {[%clk 0:01:57.2]} 18... cxd3 {[%clk 0:02:20.2]} 19. Re1 {[%clk 0:01:25]}
19... Qxb2 {[%clk 0:01:25.6]} 20. e5 {[%clk 0:01:18.5]} 20... Rxe5 {[%clk
0:00:30.4]} 21. Nxe5 {[%clk 0:01:07.2]} 21... Bxe5 {[%clk 0:00:32.3]} 22. Rb1
{[%clk 0:01:07.2]} 22... Qd4 {[%clk 0:00:33.2]} 23. fxg6 {[%clk 0:00:53.2]}
23... hxg6 {[%clk 0:00:34]} 24. Rxb7 {[%clk 0:00:28]} 24... Qxd5 {[%clk
0:00:24.5]} 25. Rxa7 {[%clk 0:00:26.3]} 25... Bc6 {[%clk 0:00:19.3]} 26. Qd2
{[%clk 0:00:22.6]} 26... Bc3 {[%clk 0:00:20.5]} 0-1